bitfinex-derivatives/quotes_BTCF0:USTF0_20250812
["timestamp","ask_amount","ask_price","bid_price","bid_amount"]
[1755000940237,0.10722394,118450.0,118440.0,0.82860524]
[1755000940933,0.0884312,118450.0,118440.0,0.82862106]
[1755000944142,0.0982212,118450.0,118440.0,0.82862106]
[1755000944334,0.1119612,118450.0,118440.0,0.82834932]
[1755000945943,0.1119612,118450.0,118440.0,0.42175346]
[1755000946143,0.0884312,118450.0,118440.0,0.82834932]
[1755000949835,0.004,118450.0,118440.0,0.82834932]
[1755000953748,0.02753,118450.0,118440.0,0.82834932]
[1755000954649,0.01379,118450.0,118440.0,0.82834932]
[1755000955047,0.004,118450.0,118440.0,0.82834932]
[1755000955651,0.01379,118450.0,118440.0,0.82834932]
[1755000956247,0.004,118450.0,118440.0,0.82834932]
[1755000956447,0.004,118450.0,118440.0,0.82820523]
[1755000957153,0.0884312,118450.0,118440.0,0.82820523]
[1755000957453,0.0982212,118450.0,118440.0,0.82820523]
[1755000958655,0.0982212,118450.0,118440.0,1.03152753]
[1755000959854,0.1119612,118450.0,118440.0,1.03152753]
[1755000960154,0.1119612,118450.0,118440.0,1.01476759]
[1755000960349,0.0982212,118450.0,118440.0,1.01476759]
[1755000961053,0.1119612,118450.0,118440.0,1.01476759]
[1755000961653,0.1119612,118450.0,118440.0,0.40484943]
[1755000961856,0.1119612,118450.0,118440.0,1.01476759]
[1755000962448,0.41793028,118450.0,118440.0,0.40484943]
[1755000962654,0.55399028,118450.0,118440.0,1.17125943]
[1755000962954,0.2724612,118450.0,118440.0,1.49029851]
[1755000963156,0.56742028,118450.0,118440.0,1.49029851]
[1755000963748,0.55742028,118450.0,118440.0,1.49029851]
[1755000964354,0.55742028,118450.0,118440.0,1.10955917]
[1755000964556,0.55742028,118450.0,118440.0,1.41451825]
[1755000964757,0.55742028,118450.0,118440.0,1.10955917]
[1755000964758,0.65919318,118450.0,118440.0,1.10955917]
[1755000966258,0.65919318,118450.0,118440.0,1.10100439]
[1755000968761,0.2524612,118450.0,118440.0,1.10100439]
[1755000968966,0.66919318,118450.0,118440.0,1.10100439]
[1755000969460,0.56919318,118450.0,118440.0,1.10100439]
[1755000970565,0.56919318,118450.0,118440.0,1.01656599]
[1755000970754,0.56919318,118450.0,118440.0,1.10100439]
[1755000971659,0.56919318,118450.0,118440.0,0.32004439]
[1755000971857,0.56919318,118450.0,118440.0,1.11018439]
[1755000972466,0.55576318,118450.0,118440.0,1.11018439]
[1755000973867,0.1490312,118450.0,118440.0,1.11018439]
[1755000974067,0.55576318,118450.0,118440.0,1.11018439]
[1755000976072,0.55576318,118450.0,118440.0,1.10946439]
[1755000977672,1.19424116,118450.0,118440.0,0.12828599]
[1755000977867,1.21280967,118450.0,118440.0,0.10574369]
[1755000978069,0.80607769,118450.0,118440.0,0.05739779]
[1755000978267,0.80607769,118450.0,118440.0,0.03188219]
[1755000978771,0.80607769,118450.0,118440.0,0.01008449]
[1755000980673,0.63722169,118450.0,118440.0,0.01008449]
[1755000980869,0.80607769,118450.0,118440.0,0.01008449]
[1755000982276,0.80607769,118450.0,118440.0,9e-08]
[1755000983672,0.94637769,118450.0,118440.0,9e-08]
[1755000985776,0.89637769,118450.0,118440.0,9e-08]
[1755000985978,0.89784758,118450.0,118440.0,9e-08]
[1755000986176,1.30457956,118450.0,118440.0,9e-08]
[1755000986673,0.89784758,118450.0,118440.0,9e-08]
[1755000989485,0.72899158,118450.0,118440.0,9e-08]
[1755000989789,0.89784758,118450.0,118440.0,9e-08]
[1755000989977,0.89784758,118450.0,118440.0,0.02448009]
[1755000990486,0.0844383,118440.0,118430.0,0.04676]
[1755000990680,1.42379028,118440.0,118430.0,0.0938]
[1755000990877,1.46221028,118440.0,118430.0,0.0938]
[1755000991783,1.46321028,118440.0,118430.0,0.0958]
[1755000992194,1.46421028,118440.0,118430.0,0.0968]
[1755000992494,1.46421028,118440.0,118430.0,0.12075]
[1755000993590,1.46421028,118440.0,118430.0,0.24903599]
[1755000993891,1.60451028,118440.0,118430.0,0.24903599]
[1755000994188,1.46421028,118440.0,118430.0,0.13128599]
[1755000994386,1.87094226,118440.0,118430.0,0.13128599]
[1755000995085,1.87956871,118440.0,118430.0,0.13128599]
[1755001000092,1.87956871,118440.0,118430.0,0.05503459]
[1755001002692,1.98171972,118440.0,118430.0,0.05503459]
[1755001005795,1.98171972,118440.0,118430.0,0.07898459]
[1755001006391,1.98171972,118440.0,118430.0,0.05503459]
[1755001006794,1.98171972,118440.0,118430.0,0.02083379]
[1755001006992,1.98171972,118440.0,118430.0,9e-08]
[1755001009494,2.00922512,118440.0,118430.0,9e-08]
[1755001013503,0.0844526,118420.0,118410.0,0.07023]
[1755001013797,1.80326258,118420.0,118410.0,0.11879]
[1755001014003,1.66306258,118420.0,118410.0,0.11879]
[1755001014898,1.66406258,118420.0,118410.0,0.11979]
[1755001015601,1.66606258,118420.0,118410.0,0.11979]
[1755001015805,0.0844669,118400.0,118390.0,0.04876657]
[1755001015998,1.67976688,118400.0,118390.0,0.13601657]
[1755001016306,1.68844521,118400.0,118390.0,0.13601657]
[1755001016898,1.67976688,118400.0,118390.0,0.13601657]
[1755001018203,1.68076688,118400.0,118390.0,0.26530256]
[1755001018702,1.47947499,118400.0,118390.0,0.26530256]
[1755001018900,1.47847499,118400.0,118390.0,0.26430256]
[1755001019104,1.47947499,118400.0,118390.0,0.26530256]
[1755001020106,1.48812029,118400.0,118390.0,0.26530256]
[1755001020604,1.47947499,118400.0,118390.0,0.26530256]
[1755001024104,1.0723569,118400.0,118390.0,0.26530256]
[1755001024302,1.47947499,118400.0,118390.0,0.24135256]
[1755001024500,1.47947499,118400.0,118390.0,0.22661256]
[1755001025100,1.4881382,118400.0,118390.0,0.22661256]
[1755001025303,1.4881382,118400.0,118390.0,0.19507256]
[1755001025503,1.89525629,118400.0,118390.0,0.14651256]
[1755001026294,2.03545629,118400.0,118390.0,0.05143466]
[1755001026698,2.03545629,118400.0,118390.0,0.02104116]
[1755001026897,2.03545629,118400.0,118340.0,0.0174145]
[1755001026898,0.0845025,118350.0,118340.0,0.0174145]
[1755001027102,0.1845025,118350.0,118340.0,0.47251259]
[1755001027303,0.0845025,118350.0,118340.0,0.47251259]
[1755001027606,0.1845025,118350.0,118340.0,0.54461259]
[1755001027900,0.0845025,118350.0,118340.0,0.62912229]
[1755001028102,0.0855025,118350.0,118340.0,0.63012229]
[1755001028306,0.0855025,118350.0,118340.0,0.54561259]
[1755001028601,0.0855025,118350.0,118340.0,0.63012229]
[1755001028807,0.0875025,118350.0,118340.0,0.63850856]
[1755001029006,0.0875025,118350.0,118340.0,0.55399886]
[1755001030008,1.5875025,118350.0,118340.0,0.68228485]
[1755001030397,1.6875025,118350.0,118340.0,0.68228485]
[1755001030603,1.5875025,118350.0,118340.0,0.68228485]
[1755001031404,1.6875025,118350.0,118340.0,0.68228485]
[1755001031703,1.7101225,118350.0,118340.0,0.68228485]
[1755001032103,1.7101225,118350.0,118340.0,0.27516676]
[1755001032305,1.7101225,118350.0,118340.0,0.68228485]
[1755001033810,1.7247225,118350.0,118340.0,0.68228485]
[1755001034010,1.6312025,118350.0,118340.0,0.27516676]
[1755001034212,1.7412025,118350.0,118340.0,0.27516676]
[1755001034810,1.6312025,118350.0,118340.0,0.27516676]
[1755001035006,1.7312025,118350.0,118340.0,0.27516676]
[1755001035205,0.1101225,118350.0,118340.0,0.35967646]
[1755001035605,0.1101225,118350.0,118340.0,0.27516676]
[1755001035802,0.60462059,118350.0,118340.0,0.27516676]
[1755001036012,0.1661225,118350.0,118340.0,0.35967646]
[1755001036210,0.1557525,118350.0,118340.0,0.27516676]
[1755001036610,0.1557525,118350.0,118340.0,0.68228485]
[1755001036812,0.1557525,118350.0,118340.0,0.27516676]
[1755001037708,0.1557525,118350.0,118340.0,0.68228485]
[1755001037911,0.2657525,118350.0,118340.0,0.68228485]
[1755001039410,0.2657525,118350.0,118340.0,1.45736485]
[1755001039710,0.2657525,118350.0,118340.0,0.68228485]
[1755001040508,0.2761225,118350.0,118340.0,0.68228485]
[1755001040716,0.58164502,118350.0,118340.0,0.58068928]
[1755001041715,0.57164502,118350.0,118340.0,0.58068928]
[1755001043121,0.47164502,118350.0,118340.0,0.58068928]
[1755001043420,0.57164502,118350.0,118340.0,0.58068928]
[1755001043719,0.57164502,118350.0,118340.0,0.56341478]
[1755001044023,0.1346725,118350.0,118340.0,0.8689373]
[1755001044317,0.55019502,118350.0,118340.0,0.8689373]
[1755001044514,0.1346725,118350.0,118340.0,0.56341478]
[1755001044820,0.0875025,118350.0,118340.0,0.8689373]
[1755001045116,0.1101225,118350.0,118340.0,0.953447]
[1755001046011,0.1254825,118350.0,118340.0,0.953447]
[1755001046419,0.2354825,118350.0,118340.0,0.953447]
[1755001046617,0.54100502,118350.0,118340.0,0.8689373]
[1755001046919,0.55019502,118350.0,118340.0,0.8689373]
[1755001047212,0.56479502,118350.0,118340.0,0.8689373]
[1755001047422,0.56479502,118350.0,118340.0,0.953447]
[1755001047713,0.1492725,118350.0,118340.0,0.953447]
[1755001048016,0.2392725,118350.0,118340.0,0.953447]
[1755001048213,0.1492725,118350.0,118340.0,0.953447]
[1755001048610,0.1346725,118350.0,118340.0,0.953447]
[1755001049219,0.1492725,118350.0,118340.0,0.8689373]
[1755001049814,0.1492725,118350.0,118340.0,0.25789226]
[1755001050022,0.46127502,118350.0,118340.0,0.8689373]
[1755001050315,0.56127502,118350.0,118340.0,0.8689373]
[1755001051014,0.57164502,118350.0,118340.0,0.8689373]
[1755001051415,0.57164502,118350.0,118340.0,0.25789226]
[1755001051616,0.57164502,118350.0,118340.0,0.8689373]
[1755001052116,0.57164502,118350.0,118340.0,0.56341478]
[1755001052719,0.57164502,118350.0,118340.0,0.8689373]
[1755001053021,0.57164502,118350.0,118340.0,0.56341478]
[1755001054018,0.57164502,118350.0,118340.0,0.8689373]
[1755001054519,0.57164502,118350.0,118340.0,1.03301226]
[1755001054817,0.57164502,118350.0,118340.0,0.18495599]
[1755001055022,0.57164502,118350.0,118340.0,0.55208851]
[1755001055514,0.57164502,118350.0,118340.0,0.90436599]
[1755001055717,0.87716754,118350.0,118340.0,0.12928599]
[1755001055921,1.65224754,118350.0,118340.0,0.12928599]
[1755001056118,1.66060106,118350.0,118340.0,0.12928599]
[1755001056318,1.0412025,118350.0,118340.0,0.18340599]
[1755001056513,1.34672502,118350.0,118340.0,0.19326599]
[1755001056713,1.45701724,118350.0,118340.0,0.20912599]
[1755001057316,1.4486561,118350.0,118340.0,0.20912599]
[1755001057927,0.6735761,118350.0,118340.0,0.20912599]
[1755001058625,0.6735761,118350.0,118340.0,0.22267599]
[1755001060425,0.6735761,118350.0,118340.0,0.20912599]
[1755001061227,0.68207025,118350.0,118340.0,0.20912599]
[1755001061427,0.6735761,118350.0,118340.0,0.20912599]
[1755001062522,0.6735761,118350.0,118340.0,0.22267599]
[1755001062925,0.2661225,118350.0,118340.0,0.22267599]
[1755001063128,0.6735761,118350.0,118340.0,0.22267599]
[1755001063629,0.6735761,118350.0,118340.0,0.22273968]
[1755001063829,0.68224571,118350.0,118340.0,0.22273968]
[1755001064028,0.6735761,118350.0,118340.0,0.22273968]
[1755001064231,0.6735761,118350.0,118340.0,0.24662968]
[1755001065528,0.2661225,118350.0,118340.0,0.20918968]
[1755001065741,0.6632061,118350.0,118340.0,0.65408328]
[1755001065928,0.6735761,118350.0,118340.0,0.24662968]
[1755001066929,0.2661225,118350.0,118340.0,0.65408328]
[1755001067228,0.2557525,118350.0,118340.0,0.65408328]
[1755001067624,0.2661225,118350.0,118340.0,0.65408328]
[1755001067832,0.2661225,118350.0,118340.0,0.24662968]
[1755001068028,0.6735761,118350.0,118340.0,0.24662968]
[1755001078533,0.2120525,118350.0,118340.0,0.65408328]
[1755001078737,0.46120421,118350.0,118340.0,0.55215139]
[1755001079237,0.57120421,118350.0,118340.0,0.55215139]
[1755001079732,0.46120421,118350.0,118340.0,0.63666099]
[1755001080128,0.46120421,118350.0,118340.0,0.55215139]
[1755001080129,0.59120421,118350.0,118340.0,0.55215139]
[1755001080938,0.2856825,118350.0,118340.0,0.63666099]
[1755001081141,0.59120421,118350.0,118340.0,0.63666099]
[1755001081337,0.60157421,118350.0,118340.0,0.55215139]
[1755001082440,0.60157421,118350.0,118340.0,0.24662968]
[1755001082638,0.90709592,118350.0,118340.0,0.12934968]
[1755001093557,0.2960525,118350.0,118340.0,0.12934968]
[1755001093753,0.2960525,118350.0,118340.0,0.18435968]
[1755001093959,0.60157421,118350.0,118340.0,0.24846968]
[1755001094156,0.60157421,118350.0,118340.0,0.55399139]
[1755001094356,0.2960525,118350.0,118340.0,0.55399139]
[1755001094556,0.60157421,118350.0,118340.0,0.63850099]
[1755001094757,0.60157421,118350.0,118340.0,0.33297928]
[1755001095358,0.60157421,118350.0,118340.0,0.63850099]
[1755001095560,0.60157421,118350.0,118340.0,0.33297928]
[1755001095760,0.60157421,118350.0,118340.0,0.63850099]
[1755001096468,0.60157421,118350.0,118340.0,0.55399139]
[1755001097163,0.60157421,118350.0,118340.0,0.24846968]
[1755001097669,0.60157421,118350.0,118340.0,0.55399139]
[1755001097966,0.60157421,118350.0,118340.0,0.24846968]
[1755001099960,0.2960525,118350.0,118340.0,0.24846968]
[1755001100164,0.60157421,118350.0,118340.0,0.24846968]
[1755001100361,0.2960525,118350.0,118340.0,0.33297928]
[1755001100554,0.60157421,118350.0,118340.0,0.33297928]
[1755001100758,0.60157421,118350.0,118340.0,0.24846968]
[1755001101360,0.2960525,118350.0,118340.0,0.24846968]
[1755001101560,0.60157421,118350.0,118340.0,0.24846968]
[1755001105266,0.2960525,118350.0,118340.0,0.24846968]
[1755001105462,0.2651125,118350.0,118340.0,0.21036968]
[1755001105669,0.60204421,118350.0,118340.0,0.63850099]
[1755001106568,0.60204421,118350.0,118340.0,0.55399139]
[1755001107374,0.60204421,118350.0,118340.0,0.63850099]
[1755001108165,0.2266925,118350.0,118340.0,0.9440227]
[1755001108372,0.0875025,118350.0,118340.0,0.9440227]
[1755001108870,0.41590421,118350.0,118340.0,0.9440227]
[1755001109164,0.39302421,118350.0,118340.0,1.7244627]
[1755001109368,0.0875025,118350.0,118340.0,1.7244627]
[1755001111470,0.0855025,118350.0,118340.0,1.7244627]
[1755001111667,0.0865025,118350.0,118340.0,1.7234627]
[1755001111868,0.0875025,118350.0,118340.0,1.7234627]
[1755001112568,0.003,118350.0,118340.0,1.7234627]
[1755001112870,0.23730535,118360.0,118340.0,2.4515084]
[1755001113065,0.06830685,118360.0,118350.0,0.76745582]
[1755001113272,0.27212392,118370.0,118350.0,0.98231592]
[1755001113471,0.34212392,118370.0,118360.0,1.47565872]
[1755001113671,0.60353563,118370.0,118360.0,1.47565872]
[1755001113873,0.64166563,118370.0,118360.0,1.54756872]
[1755001114172,0.33614392,118370.0,118360.0,1.54756872]
[1755001114572,0.33714392,118370.0,118360.0,1.55605306]
[1755001114975,0.34662392,118370.0,118360.0,1.25053135]
[1755001115274,0.65414563,118370.0,118360.0,1.37881734]
[1755001115473,0.63550111,118370.0,118360.0,1.37881734]
[1755001115773,0.63550111,118370.0,118360.0,1.68433905]
[1755001115975,0.63650111,118370.0,118360.0,1.68433905]
[1755001116674,0.2833694,118370.0,118360.0,1.48051085]
[1755001117268,0.3051294,118370.0,118360.0,1.48351085]
[1755001117869,0.3194994,118370.0,118360.0,1.48451085]
[1755001118576,0.4194994,118370.0,118360.0,1.48451085]
[1755001118775,0.4194994,118370.0,118360.0,1.07729563]
[1755001118969,0.4289794,118370.0,118360.0,1.07729563]
[1755001119676,0.4289794,118370.0,118360.0,1.48451085]
[1755001119876,0.4289794,118370.0,118360.0,1.07729563]
[1755001120174,0.4289794,118370.0,118360.0,1.48451085]
[1755001120876,0.3289794,118370.0,118360.0,1.48451085]
[1755001124782,0.3289794,118370.0,118360.0,1.07729563]
[1755001124984,0.3289794,118370.0,118360.0,1.48451085]
[1755001125780,0.3051294,118370.0,118360.0,1.48451085]
[1755001127685,0.3194994,118370.0,118360.0,1.48451085]
[1755001127984,0.3289794,118370.0,118360.0,1.48451085]
[1755001129081,0.3194994,118370.0,118360.0,1.48451085]
[1755001131589,0.3194994,118370.0,118360.0,1.07729563]
[1755001131892,0.83671462,118370.0,118360.0,1.07729563]
[1755001132090,0.84619462,118370.0,118360.0,1.07729563]
[1755001132387,0.4389794,118370.0,118360.0,1.07729563]
[1755001132888,0.3289794,118370.0,118360.0,1.07729563]
[1755001133087,0.4289794,118370.0,118360.0,1.07729563]
[1755001134587,0.3289794,118370.0,118360.0,1.07729563]
[1755001135087,0.3289794,118370.0,118360.0,1.48451085]
[1755001136390,0.3194994,118370.0,118360.0,1.48451085]
[1755001136690,0.3051294,118370.0,118360.0,1.48451085]
[1755001138381,0.53470531,118380.0,118360.0,1.73799255]
[1755001138382,1.584484,118380.0,118360.0,1.73799255]
[1755001138582,1.584484,118380.0,118370.0,0.60947382]
[1755001138786,1.584484,118380.0,118370.0,0.5075856]
[1755001139593,1.889811,118380.0,118370.0,0.5075856]
[1755001139791,1.914571,118380.0,118370.0,0.2022586]
[1755001139992,1.610244,118380.0,118370.0,0.5085856]
[1755001140299,1.610244,118380.0,118370.0,0.63687159]
[1755001140683,1.915571,118380.0,118370.0,0.63687159]
[1755001141087,1.929941,118380.0,118370.0,0.63687159]
[1755001141388,1.928941,118380.0,118370.0,0.63687159]
[1755001141587,1.939421,118380.0,118370.0,0.63787159]
[1755001142595,1.624554,118380.0,118370.0,0.33254459]
[1755001142795,1.929881,118380.0,118370.0,0.63787159]
[1755001142989,1.939361,118380.0,118370.0,0.63787159]
[1755001143493,1.939361,118380.0,118370.0,0.63792509]
[1755001144297,1.634034,118380.0,118370.0,0.63792509]
[1755001144595,1.939361,118380.0,118370.0,0.63792509]
[1755001147697,1.634034,118380.0,118370.0,0.33259809]
[1755001147898,1.939361,118380.0,118370.0,0.63792509]
[1755001150202,2.029361,118380.0,118370.0,0.63792509]
[1755001152804,2.029361,118380.0,118370.0,0.33259809]
[1755001152991,2.029361,118380.0,118370.0,0.63792509]
[1755001153706,2.334688,118380.0,118370.0,0.99502809]
[1755001154096,1.724034,118380.0,118370.0,0.99502809]
[1755001154597,2.334688,118380.0,118370.0,0.99502809]
[1755001154998,1.724034,118380.0,118370.0,0.99514809]
[1755001155199,2.334688,118380.0,118370.0,0.99630809]
[1755001155400,1.724034,118380.0,118370.0,0.99630809]
[1755001155711,2.334688,118380.0,118370.0,0.99630809]
[1755001156010,2.334688,118380.0,118370.0,0.21482809]
[1755001156211,1.724034,118380.0,118370.0,0.21482809]
[1755001156410,2.334688,118380.0,118370.0,0.99634809]
[1755001158917,2.334688,118380.0,118370.0,0.91185949]
[1755001159316,2.334688,118380.0,118370.0,0.91165949]
[1755001159915,2.334688,118380.0,118370.0,0.99614809]
[1755001160517,1.724034,118380.0,118370.0,0.91165949]
[1755001160814,2.334688,118380.0,118370.0,0.99614809]
[1755001161516,1.724034,118380.0,118370.0,0.99614809]
[1755001161708,2.334688,118380.0,118370.0,0.99614809]
[1755001161909,1.724034,118380.0,118370.0,0.99614809]
[1755001162104,2.334688,118380.0,118370.0,0.99614809]
[1755001163317,2.334688,118380.0,118370.0,1.02781809]
[1755001168923,2.334688,118380.0,118370.0,1.33314509]
[1755001169519,2.334688,118380.0,118370.0,1.26234649]
[1755001169824,2.334688,118380.0,118370.0,1.02781809]
[1755001170025,2.334688,118380.0,118370.0,0.24649809]
[1755001170223,2.334688,118380.0,118370.0,1.05093809]
[1755001170524,2.334688,118380.0,118370.0,0.96644949]
[1755001170726,2.334688,118380.0,118370.0,0.93477949]
[1755001171223,2.334688,118380.0,118370.0,1.05093809]
[1755001172028,2.334688,118380.0,118370.0,1.06003809]
[1755001172626,1.724034,118380.0,118370.0,1.06003809]
[1755001172828,1.724034,118380.0,118370.0,1.09866809]
[1755001173030,2.334688,118380.0,118370.0,1.09866809]
[1755001174524,1.724034,118380.0,118370.0,1.09866809]
[1755001174729,2.334688,118380.0,118370.0,1.09866809]
[1755001174929,2.334688,118380.0,118370.0,1.40399509]
[1755001178335,2.334688,118380.0,118370.0,1.40311509]
[1755001179631,2.029361,118380.0,118370.0,1.40311509]
[1755001180134,2.04800135,118380.0,118370.0,1.40311509]
[1755001182036,1.74267435,118380.0,118370.0,1.40311509]
[1755001182239,2.04800135,118380.0,118370.0,1.40311509]
[1755001183434,2.03852135,118380.0,118370.0,1.40311509]
[1755001183638,2.35332835,118380.0,118370.0,1.36448509]
[1755001183937,2.35332835,118380.0,118370.0,1.32371509]
[1755001184339,2.35332835,118380.0,118370.0,1.08935809]
[1755001184340,1.74267435,118380.0,118370.0,1.08935809]
[1755001184538,2.04800135,118380.0,118370.0,1.39468509]
[1755001184739,2.04800135,118380.0,118370.0,1.08935809]
[1755001184940,2.35332835,118380.0,118370.0,1.39468509]
[1755001185233,2.03852135,118380.0,118370.0,1.39468509]
[1755001185440,0.002,118380.0,118370.0,1.70001209]
[1755001185842,0.1689555,118390.0,118370.0,1.95347309]
[1755001186037,0.6911581,118400.0,118380.0,0.9612837]
[1755001186240,0.3834174,118400.0,118390.0,1.2617513]
[1755001186436,0.3481641,118400.0,118390.0,1.2617513]
[1755001186638,0.3717741,118400.0,118390.0,1.2617513]
[1755001186840,0.3717741,118400.0,118390.0,1.5670783]
[1755001187144,0.3717741,118400.0,118390.0,1.2617513]
[1755001187543,0.3869441,118400.0,118390.0,1.2617513]
[1755001188043,0.6962711,118400.0,118390.0,1.2627513]
[1755001188444,0.6992711,118400.0,118390.0,1.2637513]
[1755001190443,0.6992711,118400.0,118390.0,1.39203729]
[1755001191343,0.3939441,118400.0,118390.0,1.08671029]
[1755001191648,0.6992711,118400.0,118390.0,1.39203729]
[1755001193254,0.6992711,118400.0,118390.0,1.08671029]
[1755001193449,0.3939441,118400.0,118390.0,1.39203729]
[1755001193647,0.6992711,118400.0,118390.0,1.39203729]
[1755001194152,0.6992711,118400.0,118390.0,1.08671029]
[1755001194341,1.0045981,118400.0,118390.0,0.15150599]
[1755001194545,1.02374905,118400.0,118390.0,0.93118599]
[1755001194743,1.80338905,118400.0,118390.0,0.13028599]
[1755001194943,2.10871605,118400.0,118390.0,0.13028599]
[1755001196349,2.10844309,118400.0,118390.0,0.13028599]
[1755001196751,2.00700293,118400.0,118390.0,0.13028599]
[1755001197352,1.19246209,118400.0,118390.0,0.13028599]
[1755001197651,2.00700293,118400.0,118390.0,0.13028599]
[1755001198053,2.00722586,118400.0,118390.0,0.13028599]
[1755001199855,2.17762434,118400.0,118390.0,0.06639599]
[1755001200050,2.15852342,118400.0,118390.0,0.06639599]
[1755001200454,2.17750792,118400.0,118390.0,0.06639599]
[1755001203462,2.17750792,118400.0,118390.0,0.09081599]
[1755001203856,1.36296708,118400.0,118390.0,0.09081599]
[1755001204061,1.7459075,118400.0,118390.0,0.12762599]
[1755001204259,1.7459075,118400.0,118390.0,0.09081599]
[1755001204659,2.15317792,118400.0,118390.0,0.09081599]
[1755001205664,1.98424992,118400.0,118390.0,0.09081599]
[1755001205851,1.98424992,118400.0,118390.0,0.06639599]
[1755001206763,0.0844815,118380.0,118370.0,0.0244735]
[1755001206964,1.39009192,118380.0,118370.0,0.0244735]
[1755001207262,1.42301596,118380.0,118370.0,5.35e-05]
[1755001207464,1.42301596,118380.0,118370.0,0.0244735]
[1755001207966,1.42301596,118380.0,118370.0,5.35e-05]
[1755001208159,1.43256487,118380.0,118370.0,0.0010535]
[1755001208360,1.43356487,118380.0,118370.0,0.0020535]
[1755001208664,1.57376487,118380.0,118370.0,0.0264735]
[1755001208968,1.57376487,118380.0,118370.0,1e-07]
[1755001209666,0.08451,118340.0,118330.0,0.1830334]
[1755001209860,0.08451,118340.0,118330.0,0.58595382]
[1755001210060,0.08451,118340.0,118330.0,0.62276382]
[1755001210254,0.18451,118340.0,118330.0,0.64718382]
[1755001210562,0.19451,118340.0,118330.0,0.69367382]
[1755001211255,0.08651,118340.0,118330.0,0.69567382]
[1755001211466,0.08751,118340.0,118330.0,0.69667382]
[1755001212365,0.08651,118340.0,118330.0,0.69567382]
[1755001212565,0.08751,118340.0,118330.0,0.69567382]
[1755001212863,0.09665,118340.0,118330.0,0.69567382]
[1755001213166,0.11087,118340.0,118330.0,0.69567382]
[1755001213470,0.11087,118340.0,118330.0,0.2884034]
[1755001214064,0.22087,118340.0,118330.0,0.2884034]
[1755001214264,0.22087,118340.0,118330.0,0.2874034]
[1755001214466,0.09665,118340.0,118330.0,0.2874034]
[1755001214866,0.09665,118340.0,118330.0,0.69467382]
[1755001214867,0.08751,118340.0,118330.0,0.69467382]
[1755001215467,0.08751,118340.0,118330.0,0.2874034]
[1755001215668,0.08751,118340.0,118330.0,0.69467382]
[1755001216070,0.08751,118340.0,118330.0,1.47303382]
[1755001217268,0.15407751,118340.0,118330.0,1.47303382]
[1755001219570,0.16321751,118340.0,118330.0,1.47303382]
[1755001219770,0.17743751,118340.0,118330.0,1.47303382]
[1755001221675,0.17743751,118340.0,118330.0,1.0657634]
[1755001222067,0.17743751,118340.0,118330.0,1.47303382]
[1755001222373,0.16321751,118340.0,118330.0,1.47303382]
[1755001223976,0.15407751,118340.0,118330.0,1.47303382]
[1755001226177,0.15407751,118340.0,118330.0,1.0657634]
[1755001226375,0.16321751,118340.0,118330.0,1.47303382]
[1755001226577,0.17743751,118340.0,118330.0,1.47303382]
[1755001226776,0.17743751,118340.0,118330.0,1.0657634]
[1755001226977,0.17743751,118340.0,118330.0,1.47303382]
[1755001227476,0.16321751,118340.0,118330.0,1.47303382]
[1755001227979,0.17743751,118340.0,118330.0,1.47303382]
[1755001228176,0.16321751,118340.0,118330.0,1.47303382]
[1755001228371,0.16321751,118340.0,118330.0,1.0657634]
[1755001228576,0.15407751,118340.0,118330.0,1.0657634]
[1755001228981,0.15407751,118340.0,118330.0,1.47303382]
[1755001229480,0.15407751,118340.0,118330.0,1.0657634]
[1755001229680,0.26407751,118340.0,118330.0,1.47303382]
[1755001229877,0.15407751,118340.0,118330.0,1.47303382]
[1755001230379,0.26407751,118340.0,118330.0,1.47303382]
[1755001230576,0.26407751,118340.0,118330.0,1.0657634]
[1755001230781,0.26407751,118340.0,118330.0,1.47303382]
[1755001231682,0.26407751,118340.0,118330.0,1.0657634]
[1755001231881,0.26407751,118340.0,118330.0,1.47303382]
[1755001232078,0.15407751,118340.0,118330.0,1.47303382]
[1755001234080,0.15407751,118340.0,118330.0,1.0657634]
[1755001234278,0.15407751,118340.0,118330.0,1.47303382]
[1755001236177,0.26407751,118340.0,118330.0,1.47303382]
[1755001236683,0.56964101,118340.0,118330.0,1.3713269]
[1755001237578,0.15407751,118340.0,118330.0,1.3713269]
[1755001237783,0.55964101,118340.0,118330.0,1.3713269]
[1755001238687,0.45964101,118340.0,118330.0,1.3713269]
[1755001239686,0.45964101,118340.0,118330.0,1.0657634]
[1755001239886,0.45964101,118340.0,118330.0,1.3713269]
[1755001240091,0.45964101,118340.0,118330.0,1.0657634]
[1755001240281,0.45964101,118340.0,118330.0,1.3713269]
[1755001240982,0.15407751,118340.0,118330.0,1.3713269]
[1755001241682,0.15407751,118340.0,118330.0,1.6768904]
[1755001242185,0.15407751,118340.0,118330.0,1.3713269]
[1755001242686,0.15407751,118340.0,118330.0,1.6768904]
[1755001244584,0.15407751,118340.0,118330.0,1.3713269]
[1755001246490,0.16372751,118340.0,118330.0,1.3713269]
[1755001247692,0.16372751,118340.0,118330.0,1.3700469]
[1755001251696,0.48357101,118340.0,118330.0,1.0644434]
[1755001251997,0.48357101,118340.0,118330.0,1.3700069]
[1755001252897,0.17800751,118340.0,118330.0,1.3700069]
[1755001253099,0.48357101,118340.0,118330.0,1.3700069]
[1755001253302,0.16372751,118340.0,118330.0,1.3700069]
[1755001253798,0.46929101,118340.0,118330.0,1.3700069]
[1755001254299,0.16372751,118340.0,118330.0,1.3700069]
[1755001255901,0.15407751,118340.0,118330.0,1.3700069]
[1755001261700,0.15407751,118340.0,118330.0,1.0644434]
[1755001261901,0.15407751,118340.0,118330.0,1.3700069]
[1755001262099,0.15407751,118340.0,118330.0,0.5929669]
[1755001262297,0.45964101,118340.0,118330.0,1.0643634]
[1755001262499,0.48303101,118340.0,118330.0,1.0643634]
[1755001262698,0.48303101,118340.0,118330.0,1.3699269]
[1755001264503,0.59303101,118340.0,118330.0,1.3699269]
[1755001264896,0.48303101,118340.0,118330.0,1.3699269]
[1755001268606,0.48303101,118340.0,118330.0,1.3698469]
[1755001269005,0.48303101,118340.0,118330.0,1.0642834]
[1755001269202,0.48303101,118340.0,118330.0,1.3698469]
[1755001270509,0.48303101,118340.0,118330.0,1.0642834]
[1755001270710,0.48303101,118340.0,118330.0,1.3698469]
[1755001271013,0.48303101,118340.0,118330.0,1.0642834]
[1755001271317,0.48303101,118340.0,118330.0,1.3698469]
[1755001272213,0.17746751,118340.0,118330.0,1.0642834]
[1755001272411,0.48303101,118340.0,118330.0,1.3698469]
[1755001272611,0.48303101,118340.0,118330.0,0.5929669]
[1755001272811,0.48303101,118340.0,118330.0,1.3698469]
[1755001273014,0.17746751,118340.0,118330.0,1.3698469]
[1755001273207,0.48303101,118340.0,118330.0,1.3698469]
[1755001274114,0.48303101,118340.0,118330.0,0.5929669]
[1755001274314,0.48303101,118340.0,118330.0,1.0642834]
[1755001274514,0.48303101,118340.0,118330.0,1.3698469]
[1755001277814,0.48303101,118340.0,118330.0,1.0642834]
[1755001278015,0.48303101,118340.0,118330.0,1.3698469]
[1755001279614,0.17746751,118340.0,118330.0,1.3698469]